[Event "GER-chT States Women 2022"]
[Site "Braunfels"]
[Date "2022.06.17"]
[Round "2.7"]
[White "Moeller, Lisa-Marie"]
[Black "Krausse, Vanessa"]
[Result "1-0"]
[ECO "B30"]
[WhiteElo "1927"]
[BlackElo "1632"]
[Annotator "TA"]
[PlyCount "51"]
[EventDate "2022.06.15"]
[EventType "swiss"]
[EventCountry "GER"]
[SourceTitle "playchess.com"]
[Source "ChessBase"]
[SourceQuality "1"]
[TimeControl "40/5400+30:1800+30"]

{[%evp 9,51,12,50,27,56,62,80,77,83,80,151,145,143,149,169,172,243,251,266,164,225,159,232,219,316,224,216,225,229,215,355,340,354,366,353,350,359,355,360,346,575,565,855,664]} 1. e4 {[%emt 0:00:02]} c5 {[%emt 0:00:11]} 2. Nf3 {[%emt 0:00:05]} Nc6 {[%emt 0:00:22]} 3. Bb5 {[%emt 0:00:06]} d6 {[%emt 0:00:42]} 4. Bxc6+ {[%emt 0:00:17]} bxc6 {[%emt 0:00:11]} 5. O-O {[%emt 0:00:10]} Nf6 {[%emt 0:00:33]} 6. Re1 {[%emt 0:00:10] B51: Sicilian: Moscow Variation (3 Bb5+) without 3...Bd7.} (6. e5 $5 {[%cal Re5f6]}) 6... g6 {[%emt 0:03:39]} 7. e5 {[%emt 0:01:47]} dxe5 {[%emt 0:02:48]} 8. Nxe5 {[%emt 0:02:20] White is better.} Qc7 {[%emt 0:04:43]} 9. Qf3 {[%emt 0:08:04] [#]} Bb7 $146 {[%emt 0:06:49]} (9... Be6 $142) ({Predecessor:} 9... Bd7 10. Nc3 Bg7 11. Na4 Qd6 12. b3 O-O 13. Ba3 Nd5 14. Bxc5 Qc7 15. d4 Be6 {1-0 (24) Barbosa,E (2482)-De Santana,J (1815) Natal 2016}) 10. Nc3 {[%emt 0:02:01][%cal Oc3e4,Bb1c3,Bc3a4,Ba4c5][%mdl 32]} ({Much less strong is} 10. Qb3 e6 $14) 10... Bg7 {[%emt 0:07:21]} 11. Na4 {[%emt 0:03:53] White is much more active. The black rooks are badly placed.} O-O {[%emt 0:24:12]} 12. Nxc5 {[%emt 0:02:28]} Nd5 {[%emt 0:09:34]} (12... Rad8 {was worth a try.} 13. c3 Nd5) 13. d4 $18 {[%emt 0:06:53]} Rad8 {[%emt 0:04:52]} 14. c3 {[%emt 0:04:49]} e6 {[%emt 0:05:59]} (14... Bc8 $142 15. Ned3 Bf5) 15. Qh3 {[%emt 0:04:48]} Rfe8 {[%emt 0:03:18]} (15... Bc8 $16 {is a better defense.} 16. Qh4 f6) 16. Bh6 {[%emt 0:05:18][%cal Bc1h6,Bh6g5,Bg5f4][%mdl 32]} Bh8 {[%emt 0:04:50]} (16... Bc8 $142 17. Bxg7 Kxg7) 17. Rad1 {[%emt 0:06:02] Black must now prevent c4.} Bc8 {[%emt 0:01:19]} 18. Qf3 {[%emt 0:02:51]} f6 {[%emt 0:01:10]} 19. Ned3 {[%emt 0:03:12]} f5 {[%emt 0:03:50]} (19... a5 {was necessary.} 20. a3 e5 21. dxe5 fxe5) 20. Bg5 {[%emt 0:02:14]} Nf6 {[%emt 0:02:43]} 21. Ne5 {[%emt 0:04:51][%cal Bd3e5,Be5c4,Bc4e3][%mdl 32]} Rd6 {[%emt 0:01:04]} 22. Nc4 {[%emt 0:03:04] [#] Bf4 is the strong threat. Pair of Knights!} Rd5 {[%emt 0:00:43]} 23. Bf4 {[%emt 0:01:55]} Qd8 {[%emt 0:00:33]} 24. Ne3 {[%emt 0:00:49]} Rxc5 $2 {[%emt 0:00:37]} (24... Bg7 25. Nxd5 cxd5) 25. dxc5 {[%emt 0:00:11]} Nd7 {[%emt 0:00:47]} 26. Qxc6 {[%emt 0:01:25] White took control after the opening.  Weighted Error Value: White=0.16 (very precise) /Black=0.44} 1-0

[Event "GER-chT States Women 2022"]
[Site "Braunfels"]
[Date "2022.06.17"]
[Round "2.8"]
[White "Engel, Esther"]
[Black "Sereda, Yaroslava"]
[Result "0-1"]
[ECO "D58"]
[WhiteElo "1751"]
[BlackElo "1698"]
[Annotator "NA RC"]
[PlyCount "122"]
[EventDate "2022.06.15"]
[EventType "swiss"]
[EventCountry "GER"]
[SourceTitle "playchess.com"]
[Source "ChessBase"]
[SourceQuality "1"]
[TimeControl "40/5400+30:1800+30"]

1. d4 {[%emt 0:00:07]} d5 {[%emt 0:00:05]} 2. c4 {[%emt 0:00:09]} e6 {[%emt 0:00:08]} 3. Nc3 {[%emt 0:00:15]} Nf6 {[%emt 0:00:09]} 4. Nf3 {[%emt 0:00:29]} Be7 {[%emt 0:00:27]} 5. Bg5 {[%emt 0:01:03]} O-O {[%emt 0:00:39]} 6. e3 {[%emt 0:00:11]} h6 {[%emt 0:00:34]} 7. Bh4 {[%emt 0:00:27]} b6 {[%emt 0:00:33]} 8. Bd3 {[%emt 0:04:50]} dxc4 {[%emt 0:02:38]} 9. Bxc4 {[%emt 0:00:20]} Bb7 {[%emt 0:00:42]} 10. O-O {[%emt 0:01:33]} Nbd7 {[%emt 0:02:10]} 11. Rc1 {[%emt 0:02:48]} Ne4 {[%emt 0:27:02]} 12. Bxe7 {[%emt 0:00:28]} Qxe7 {[%emt 0:00:21]} 13. Nxe4 {[%emt 0:02:14]} Bxe4 {[%emt 0:00:10]} 14. Qe2 {[%emt 0:04:34]} c5 {[%emt 0:03:12]} 15. Rfd1 {[%emt 0:11:54]} cxd4 {[%emt 0:04:44]} 16. Nxd4 {[%emt 0:01:44]} Ne5 {[%emt 0:01:49]} 17. f3 {[%emt 0:02:41]} Nxc4 {[%emt 0:02:01]} 18. Qxc4 {[%emt 0:01:19]} Bd5 {[%emt 0:02:27]} 19. Qa6 {[%emt 0:04:59]} Bb7 {[%emt 0:10:40]} 20. Qe2 {[%emt 0:02:43]} Rac8 {[%emt 0:01:37]} 21. e4 {[%emt 0:04:06]} Rfd8 {[%emt 0:02:05]} 22. Rxc8 {[%emt 0:06:55]} Rxc8 {[%emt 0:00:45]} 23. Nb3 {[%emt 0:00:13]} Rc7 {[%emt 0:05:17]} 24. Qd2 {[%emt 0:04:21]} Ba6 {[%emt 0:01:57]} 25. Qd6 {[%emt 0:01:36]} Qxd6 {[%emt 0:00:59]} 26. Rxd6 {[%emt 0:00:32]} Bc4 {[%emt 0:00:46]} 27. Rd2 {[%emt 0:08:52]} Bxb3 {[%emt 0:05:23]} 28. axb3 {[%emt 0:00:13]} Kh7 {[%emt 0:09:13]} 29. Kf2 {[%emt 0:00:22]} Kg6 {[%emt 0:00:11]} 30. Ke3 {[%emt 0:08:29]} Kf6 {[%emt 0:02:03]} 31. f4 {[%emt 0:04:38]} g5 {[%emt 0:04:43]} 32. g3 {[%emt 0:02:18]} Rc5 {[%emt 0:03:11]} 33. Kd4 {[%emt 0:12:47]} a5 {[%emt 0:03:05]} 34. Ke3 {[%emt 0:03:08]} gxf4+ {[%emt 0:01:14]} 35. gxf4 {[%emt 0:00:15]} Rb5 {[%emt 0:00:22]} 36. Rd3 {[%emt 0:00:26]} Rh5 {[%emt 0:00:22]} 37. Rd2 {[%emt 0:00:10]} Rh3+ {[%emt 0:00:15]} 38. Kd4 {[%emt 0:00:35]} Rxb3 {[%emt 0:00:13]} 39. Rf2 {[%emt 0:01:02]} Rb4+ {[%emt 0:01:07]} 40. Ke3 {[%emt 0:00:58]} b5 {[%emt 0:03:07]} 41. Kd3 {[%emt 0:07:23]} a4 {[%emt 0:04:32]} 42. Ke3 {[%emt 0:03:17]} Rb3+ {[%emt 0:03:56]} 43. Kd4 {[%emt 0:00:32]} b4 {[%emt 0:09:50]} 44. Kc4 {[%emt 0:05:58]} h5 {[%emt 0:05:59]} 45. Kd4 {[%emt 0:11:15]} a3 {[%emt 0:01:29]} 46. bxa3 {[%emt 0:00:17]} bxa3 {[%emt 0:01:06]} 47. Ra2 {[%emt 0:02:39]} h4 {[%emt 0:00:32]} 48. Kc4 {[%emt 0:01:04]} Rf3 {[%emt 0:05:49]} 49. Kd4 {[%emt 0:01:58]} Rxf4 {[%emt 0:02:24]} 50. Rxa3 {[%emt 0:00:11]} Rf2 {[%emt 0:00:23]} 51. Rh3 {[%emt 0:00:39]} Kg5 {[%emt 0:00:18]} 52. Rc3 {[%emt 0:03:10]} Rxh2 {[%emt 0:00:25]} 53. Rc8 {[%emt 0:00:32]} Rh1 {[%emt 0:01:10]} 54. Ke5 {[%emt 0:00:22]} h3 {[%emt 0:00:21]} 55. Rg8+ {[%emt 0:00:21]} Kh4 {[%emt 0:00:31]} 56. Rh8+ {[%emt 0:00:25]} Kg3 {[%emt 0:00:23]} 57. Rg8+ {[%emt 0:00:11]} Kh2 {[%emt 0:00:30]} 58. Kf4 {[%emt 0:01:29]} Rg1 {[%emt 0:00:39]} 59. Rh8 {[%emt 0:00:17]} Rg3 {[%emt 0:00:34]} 60. Rh5 {[%emt 0:00:48]} Kg2 {[%emt 0:00:28]} 61. Rh8 {[%emt 0:00:32]} h2 {[%emt 0:00:17]} 0-1

[Event "GER-chT States Women 2022"]
[Site "Braunfels"]
[Date "2022.06.17"]
[Round "2.10"]
[White "Jussupow, Nadia"]
[Black "Birkholz, Olga"]
[Result "1/2-1/2"]
[ECO "A40"]
[WhiteElo "2146"]
[BlackElo "1993"]
[Annotator "NA RC"]
[PlyCount "28"]
[EventDate "2022.06.15"]
[EventType "swiss"]
[EventCountry "GER"]
[SourceTitle "playchess.com"]
[Source "ChessBase"]
[SourceQuality "1"]
[TimeControl "40/5400+30:1800+30"]

1. d4 {[%emt 0:00:30]} b6 {[%emt 0:00:54]} 2. e4 {[%emt 0:00:00]} Bb7 {[%emt 0:01:54]} 3. Nc3 {[%emt 0:00:44]} e6 {[%emt 0:00:15]} 4. Bd3 {[%emt 0:00:42]} Nc6 {[%emt 0:00:22]} 5. Nf3 {[%emt 0:00:52]} Nb4 {[%emt 0:04:26]} 6. Be2 {[%emt 0:09:35]} d5 {[%emt 0:02:01]} 7. exd5 {[%emt 0:01:12]} Nxd5 {[%emt 0:00:32]} 8. O-O {[%emt 0:01:00]} Nxc3 {[%emt 0:05:58]} 9. bxc3 {[%emt 0:05:00]} Bd6 {[%emt 0:00:02]} 10. a4 {[%emt 0:03:21]} Nf6 {[%emt 0:05:49]} 11. Bb5+ {[%emt 0:02:59]} c6 {[%emt 0:00:42]} 12. Bd3 {[%emt 0:00:04]} h6 {[%emt 0:03:08]} 13. Ba3 {[%emt 0:01:09]} O-O {[%emt 0:01:43]} 14. Bxd6 {[%emt 0:01:36]} Qxd6 1/2-1/2

[Event "GER-chT States Women 2022"]
[Site "Braunfels"]
[Date "2022.06.17"]
[Round "2.11"]
[White "Stangl, Anita"]
[Black "Kostak, Tatiana"]
[Result "1-0"]
[ECO "C40"]
[WhiteElo "2041"]
[BlackElo "2102"]
[Annotator "TA"]
[PlyCount "99"]
[EventDate "2022.06.15"]
[EventType "swiss"]
[EventCountry "GER"]
[SourceTitle "playchess.com"]
[Source "ChessBase"]
[SourceQuality "1"]
[TimeControl "40/5400+30:1800+30"]

{[%evp 9,99,74,71,-23,-30,-32,-31,-29,-14,-15,-16,-14,-11,-14,-3,-22,-24,-21,-10,-8,-28,-14,0,0,0,1,0,4,0,0,4,-8,0,-21,-18,-16,-3,-4,0,-9,0,0,0,0,0,0,0,0,8,6,8,8,12,14,74,80,74,85,108,140,213,8,213,213,213,57,213,213,213,213,213,213,213,213,213,213,213,213,522,172,2306,1969,29969,29971,29976,29977,29976,29976,29965,11476,2552,2256]} 1. e4 {[%emt 0:00:00]} e5 {[%emt 0:00:06][%cal Be7e5,Be5e4][%mdl 32]} 2. Nf3 {[%emt 0:00:07]} d5 {[%emt 0:00:06]} 3. exd5 {[%emt 0:03:06]} e4 {[%emt 0:00:09]} 4. Qe2 {[%emt 0:02:59]} Nf6 {[%emt 0:01:13]} 5. d3 {[%emt 0:02:47]} Qxd5 {[%emt 0:00:22] [#]} 6. c4 $146 {[%emt 0:06:56] C40: Latvian and Elephant Gambits.} (6. Ng5 $16) ({Predecessor:} 6. Nc3 Bb4 7. Bd2 Bxc3 8. Bxc3 O-O 9. dxe4 Nxe4 10. Rd1 Qe6 11. Nd4 Qg6 12. Nb5 Na6 13. Bd4 {1-0 (34) Warmerdam,M (2562)-Skatchkov,V (2298) Chess.com INT 2021}) 6... Qxd3 $11 {[%emt 0:03:53]} 7. Qxd3 {[%emt 0:01:14]} exd3 {[%emt 0:00:06]} 8. Bxd3 {[%emt 0:00:06] Black is slightly better.} Bb4+ {[%emt 0:10:42]} 9. Nbd2 {[%emt 0:01:52]} O-O {[%emt 0:01:02]} 10. O-O {[%emt 0:07:13]} Rd8 {[%emt 0:06:29]} 11. Bc2 {[%emt 0:03:28]} Be6 {[%emt 0:05:55]} 12. a3 {[%emt 0:04:39]} (12. Ng5 {is more complex.} Bg4 13. Ndf3 Re8 14. h3) 12... Bxd2 {[%emt 0:00:12]} 13. Nxd2 {[%emt 0:00:08]} Nc6 {[%emt 0:00:10]} 14. b3 {[%emt 0:02:55]} Nd4 {[%emt 0:03:17]} 15. Bd1 {[%emt 0:00:42]} Bf5 {[%emt 0:05:42]} 16. Nf3 {[%emt 0:06:18]} Bd3 {[%emt 0:11:36]} 17. Re1 {[%emt 0:02:46]} Nc2 {[%emt 0:07:01]} 18. Bxc2 {[%emt 0:00:10]} Bxc2 {[%emt 0:00:02]} 19. b4 {[%emt 0:00:24]} a5 {[%emt 0:01:08]} 20. Bg5 {[%emt 0:01:28]} axb4 {[%emt 0:01:10]} (20... h6 {seems wilder.} 21. Bxf6 gxf6 22. b5 Kf8) 21. Bxf6 gxf6 {[%emt 0:00:12]} 22. axb4 {[%emt 0:02:06]} Rxa1 {[%emt 0:01:24]} 23. Rxa1 {[%emt 0:00:06][%mdl 4096] Endgame KRB-KRN} Be4 {[%emt 0:02:56]} 24. Ne1 {[%emt 0:05:32]} c6 {[%emt 0:04:32]} 25. f3 {[%emt 0:01:59]} Bf5 {[%emt 0:00:04]} 26. Ra7 {[%emt 0:01:22]} Rd7 {[%emt 0:02:40]} 27. Kf2 {[%emt 0:01:56]} Be6 {[%emt 0:00:09]} 28. c5 {[%emt 0:01:40]} Bc4 {[%emt 0:00:08]} 29. f4 {[%emt 0:05:53]} Rd2+ {[%emt 0:03:25]} 30. Kg3 {[%emt 0:02:12]} Ba6 {[%emt 0:00:31]} 31. Nf3 {[%emt 0:01:13]} Rb2 {[%emt 0:00:13]} (31... Rd3 $11 {remains equal.}) 32. Nd4 $1 $16 {[%emt 0:05:04][%cal Od4c6]} Rxb4 {[%emt 0:01:10] [#]} 33. Nxc6 {[%emt 0:02:54]} Rb3+ {[%emt 0:01:03]} (33... Re4 34. Nd8) 34. Kh4 {[%emt 0:02:05]} Bd3 {[%emt 0:02:18]} (34... bxc6 $16 {was called for.} 35. Rxa6 Rc3) 35. Ra8+ $1 $18 {[%emt 0:02:57]} Kg7 {[%emt 0:00:03]} 36. Ne7 {[%emt 0:01:48] Rg8+ would kill now.} h6 {[%emt 0:04:32]} 37. Rg8+ {[%emt 0:07:09]} Kh7 {[%emt 0:00:02]} 38. Rg3 {[%emt 0:05:57]} Bc2 {[%emt 0:00:10] [#]} 39. Rxb3 {[%emt 0:03:42]} Bxb3 {[%emt 0:00:02] [#] KB-KN} 40. Nf5 $1 {[%emt 0:01:41]} Bd5 {[%emt 0:01:12]} 41. g3 {[%emt 0:30:39]} Be4 {[%emt 0:31:14]} 42. Nd6 {[%emt 0:01:34][%csl LRe4,LRf7]} Bd5 {[%emt 0:00:11]} 43. Kh5 {[%emt 0:00:59]} Kg8 $2 {[%emt 0:05:07]} (43... Bf3+ {is tougher.} 44. g4 Bc6) 44. Ne8 $2 {[%emt 0:00:00]} (44. Kxh6 {Intending Ne8 and mate.} Kf8 45. h4) 44... Kf8 {[%emt 0:00:00]} (44... Bc6) 45. Nxf6 {[%emt 0:00:00]} Bf3+ {[%emt 0:00:00]} 46. Kxh6 {[%emt 0:00:00]} Ke7 {[%emt 0:00:00]} 47. Kg7 {[%emt 0:00:00]} Kd8 {[%emt 0:00:00]} 48. h4 {[%emt 0:00:00][%cal Bh2h4,Bh4h5][%mdl 32]} Kc7 {[%emt 0:00:00]} 49. g4 {[%emt 0:00:00]} (49. h5 $142 Bxh5 50. Nxh5 Kc6 51. Kxf7 Kd5 52. f5 Ke4 53. Ke6 Kf3 54. f6) 49... Kc6 {[%emt 0:00:00]} 50. h5 {[%emt 0:00:00] Weighted Error Value: White=0.17 (very precise) /Black=0.33} 1-0

[Event "GER-chT States Women 2022"]
[Site "Braunfels"]
[Date "2022.06.17"]
[Round "2.12"]
[White "Valkova, Angelika"]
[Black "Braun, Kristin"]
[Result "1-0"]
[ECO "E71"]
[WhiteElo "2066"]
[BlackElo "1905"]
[Annotator "NA RC"]
[PlyCount "60"]
[EventDate "2022.06.15"]
[EventType "swiss"]
[EventCountry "GER"]
[SourceTitle "playchess.com"]
[Source "ChessBase"]
[SourceQuality "1"]
[TimeControl "40/5400+30:1800+30"]

1. d4 {[%emt 0:00:04]} Nf6 {[%emt 0:00:05]} 2. c4 {[%emt 0:00:05]} g6 {[%emt 0:00:02]} 3. Nc3 {[%emt 0:00:07]} Bg7 {[%emt 0:00:02]} 4. e4 {[%emt 0:00:10]} d6 {[%emt 0:00:03]} 5. h3 {[%emt 0:00:10]} O-O {[%emt 0:00:08]} 6. Be3 {[%emt 0:00:06]} e5 {[%emt 0:00:22]} 7. d5 {[%emt 0:00:05]} a5 {[%emt 0:00:17]} 8. g4 {[%emt 0:00:09]} Na6 {[%emt 0:02:06]} 9. Qd2 {[%emt 0:00:47]} Nc5 {[%emt 0:00:27]} 10. f3 {[%emt 0:00:06]} Ne8 {[%emt 0:07:50]} 11. h4 {[%emt 0:00:16]} f5 {[%emt 0:00:35]} 12. gxf5 {[%emt 0:00:07]} gxf5 {[%emt 0:00:06]} 13. O-O-O {[%emt 0:01:02]} f4 {[%emt 0:14:39]} 14. Bf2 {[%emt 0:00:42]} Nf6 {[%emt 0:07:55]} 15. Bh3 {[%emt 0:00:33]} Nh5 {[%emt 0:04:08]} 16. Bxc8 {[%emt 0:03:16]} Rxc8 {[%emt 0:04:33]} 17. Nh3 {[%emt 0:00:27]} h6 {[%emt 0:01:04]} 18. Rdg1 {[%emt 0:01:46]} Kh7 {[%emt 0:01:59]} 19. Bxc5 {[%emt 0:40:14]} dxc5 {[%emt 0:00:05]} 20. Ng5+ {[%emt 0:00:06]} hxg5 {[%emt 0:02:09]} 21. hxg5 {[%emt 0:01:53]} Kg6 {[%emt 0:00:43]} 22. Rxh5 {[%emt 0:00:09]} Kxh5 {[%emt 0:01:41]} 23. g6 {[%emt 0:00:07]} Bf6 {[%emt 0:00:25]} 24. g7 {[%emt 0:01:03]} Rg8 {[%emt 0:01:12]} 25. Qh2+ {[%emt 0:01:22]} Bh4 {[%emt 0:00:12]} 26. Qh3 {[%emt 0:00:06]} Kh6 {[%emt 0:09:38]} 27. Rg4 {[%emt 0:00:36]} Qf6 {[%emt 0:07:35]} 28. Rxh4+ {[%emt 0:00:29]} Qxh4 {[%emt 0:03:02]} 29. Qxh4+ {[%emt 0:00:09]} Kxg7 {[%emt 0:00:03]} 30. Qe7+ {[%emt 0:02:19]} Kh6 1-0

[Event "GER-chT States Women 2022"]
[Site "Braunfels"]
[Date "2022.06.17"]
[Round "2.13"]
[White "Ankerst, Milka"]
[Black "Gheng, Simona"]
[Result "0-1"]
[ECO "B72"]
[WhiteElo "1931"]
[BlackElo "1944"]
[Annotator "NA RC"]
[PlyCount "116"]
[EventDate "2022.06.15"]
[EventType "swiss"]
[EventCountry "GER"]
[SourceTitle "playchess.com"]
[Source "ChessBase"]
[SourceQuality "1"]
[TimeControl "40/5400+30:1800+30"]

1. e4 {[%emt 0:00:05]} c5 {[%emt 0:01:20]} 2. Nf3 {[%emt 0:00:19]} d6 {[%emt 0:00:14]} 3. d4 {[%emt 0:00:17]} cxd4 {[%emt 0:00:17]} 4. Nxd4 {[%emt 0:00:07]} Nf6 {[%emt 0:00:24]} 5. Nc3 {[%emt 0:00:29]} g6 {[%emt 0:00:13]} 6. Be3 {[%emt 0:02:13]} Bg7 {[%emt 0:00:45]} 7. Bc4 {[%emt 0:02:11]} Nc6 {[%emt 0:01:07]} 8. Bb3 {[%emt 0:03:23]} Bd7 {[%emt 0:04:54]} 9. Qd2 {[%emt 0:03:13]} Ng4 {[%emt 0:01:18]} 10. Nxc6 {[%emt 0:03:17]} Bxc6 {[%emt 0:02:41]} 11. Bg5 {[%emt 0:09:41]} O-O {[%emt 0:04:20]} 12. f3 {[%emt 0:00:33]} Ne5 {[%emt 0:02:13]} 13. Bh6 {[%emt 0:05:34]} e6 {[%emt 0:15:13]} 14. O-O-O {[%emt 0:00:38]} Bxh6 {[%emt 0:00:30]} 15. Qxh6 {[%emt 0:00:18]} Qe7 {[%emt 0:00:33]} 16. h4 {[%emt 0:03:58]} Rfd8 {[%emt 0:00:53]} 17. Qe3 {[%emt 0:05:51]} (17. Qg5 $14 Qxg5+ 18. hxg5) 17... a5 {[%emt 0:07:30]} (17... b5 $11) 18. a3 {[%emt 0:04:16]} b5 {[%emt 0:00:19]} 19. h5 {[%emt 0:04:42]} Nc4 {[%emt 0:03:40]} 20. Bxc4 {[%emt 0:02:05]} bxc4 {[%emt 0:02:31]} 21. Rd2 {[%emt 0:02:38]} Rab8 {[%emt 0:01:39]} 22. Nd1 {[%emt 0:02:24]} Qf6 {[%emt 0:04:49]} 23. Qd4 {[%emt 0:05:25]} Qxd4 {[%emt 0:10:14]} 24. Rxd4 {[%emt 0:00:41]} d5 {[%emt 0:01:00]} 25. e5 {[%emt 0:01:10]} Rd7 {[%emt 0:03:45]} 26. f4 {[%emt 0:01:16]} Rdb7 {[%emt 0:00:15]} 27. g4 {[%emt 0:02:09]} a4 {[%emt 0:00:58]} 28. c3 {[%emt 0:02:44]} Kg7 {[%emt 0:01:40]} 29. Rh2 {[%emt 0:00:47]} Rg8 {[%emt 0:01:12]} 30. Ne3 {[%emt 0:02:09]} Kf8 {[%emt 0:02:40]} 31. f5 {[%emt 0:12:09]} gxf5 {[%emt 0:01:42]} 32. gxf5 {[%emt 0:00:16]} Rg3 $11 {[%emt 0:00:31]} 33. Ng4 {[%emt 0:05:53]} exf5 {[%emt 0:02:54]} 34. Nf6 {[%emt 0:00:34]} Ke7 {[%emt 0:01:38]} 35. Nxh7 {[%emt 0:01:22]} Rb8 {[%emt 0:01:42]} 36. Nf6 {[%emt 0:03:13]} Ke6 {[%emt 0:00:29]} 37. Re2 {[%emt 0:00:46]} Rh8 {[%emt 0:01:59]} 38. Kc2 {[%emt 0:00:43]} Rg5 {[%emt 0:00:39]} 39. Rf4 {[%emt 0:01:51]} Rh6 {[%emt 0:01:34]} 40. Kd2 {[%emt 0:03:06]} Rg3 {[%emt 0:04:11]} 41. Rd4 {[%emt 0:31:55]} Rg1 {[%emt 0:32:38]} 42. Rf4 {[%emt 0:02:08]} Rb1 {[%emt 0:02:02]} 43. Kc2 {[%emt 0:01:09]} Rg1 {[%emt 0:00:11]} 44. Rd4 {[%emt 0:02:01]} Rg3 {[%emt 0:01:02]} 45. Rf2 {[%emt 0:00:00]} Rg5 {[%emt 0:00:00]} 46. Rfd2 {[%emt 0:00:00]} Kxe5 {[%emt 0:00:00]} 47. Nxd5 {[%emt 0:00:00]} Bxd5 {[%emt 0:00:00]} 48. Rxd5+ {[%emt 0:00:00]} Kf6 {[%emt 0:00:00]} 49. Ra5 {[%emt 0:00:00]} Rhxh5 {[%emt 0:00:00]} 50. Rd6+ {[%emt 0:00:00]} Kg7 {[%emt 0:00:00]} 51. Rxa4 {[%emt 0:00:00]} Rg2+ {[%emt 0:00:00]} 52. Rd2 {[%emt 0:00:00]} Rhh2 {[%emt 0:00:00]} 53. Rxg2+ {[%emt 0:00:00]} Rxg2+ {[%emt 0:00:00]} 54. Kb1 {[%emt 0:00:00]} Rg4 {[%emt 0:00:00]} 55. Rb4 {[%emt 0:00:00]} Re4 {[%emt 0:00:00]} 56. Kc2 {[%emt 0:00:00]} f4 {[%emt 0:00:00]} 57. b3 {[%emt 0:00:00]} f3 {[%emt 0:00:00]} 58. bxc4 {[%emt 0:00:00]} f2 {[%emt 0:00:00]} 0-1

[Event "GER-chT States Women 2022"]
[Site "Braunfels"]
[Date "2022.06.17"]
[Round "2.14"]
[White "Timofeeva, Galina"]
[Black "Spiel, Marianne"]
[Result "1-0"]
[ECO "C00"]
[WhiteElo "1979"]
[BlackElo "1910"]
[Annotator "TA"]
[PlyCount "74"]
[EventDate "2022.06.15"]
[EventType "swiss"]
[EventCountry "GER"]
[SourceTitle "playchess.com"]
[Source "ChessBase"]
[SourceQuality "1"]
[TimeControl "40/5400+30:1800+30"]

{[%evp 18,74,47,11,16,0,6,9,16,16,16,20,8,0,118,104,158,118,168,141,199,197,217,192,318,326,735,707,929,950,902,783,710,328,562,422,549,556,538,548,508,508,469,27,28,0,596,603,829,800,664,92,1349,1279,1250,1223,896,232,574]} 1. e4 {[%emt 0:00:02]} e6 {[%emt 0:00:08]} 2. d3 {[%emt 0:00:05]} d5 {[%emt 0:00:09]} 3. Nd2 {[%emt 0:00:02]} c5 {[%emt 0:00:31]} 4. Ngf3 {[%emt 0:00:12]} Nc6 {[%emt 0:00:18]} 5. g3 {[%emt 0:01:21]} Nf6 {[%emt 0:01:23]} 6. Bg2 {[%emt 0:00:28]} Be7 {[%emt 0:03:04]} 7. O-O {[%emt 0:00:23]} dxe4 {[%emt 0:08:21]} 8. dxe4 {[%emt 0:00:27]} e5 {[%emt 0:00:57]} 9. c3 {[%emt 0:07:28]} O-O {[%emt 0:02:27]} 10. Qc2 {[%emt 0:02:08]} (10. Nc4 {is more complex.} Ng4 11. h3 b5 12. hxg4 bxc4 13. g5) 10... Qc7 {[%emt 0:08:36] A08: King's Indian Attack.} 11. Nc4 {[%emt 0:07:48]} h6 {[%emt 0:08:00]} 12. Ne3 {[%emt 0:03:46]} Rd8 {[%emt 0:02:04] The position is equal.} 13. Nd5 {[%emt 0:20:04]} Nxd5 {[%emt 0:05:41]} 14. exd5 {[%emt 0:01:04]} Rxd5 {[%emt 0:04:34]} 15. Ng5 $1 {[%emt 0:04:29] [#] Qh7+ would kill now.} Bxg5 $146 {[%emt 0:03:38]} ({Predecessor:} 15... e4 16. Bf4 Bd6 17. Bxd6 Qxd6 18. Nxe4 Qd8 19. Qb3 Re5 20. Rad1 Qe7 21. Nd6 Na5 {1-0 (35) Fudalej,G (2067)-Kostek,D (1800) Rudnik 2000}) 16. Bxd5 $16 {[%emt 0:00:28]} Bh3 {[%emt 0:02:24]} (16... Ne7 $142) 17. Re1 {[%emt 0:02:47]} Rd8 {[%emt 0:03:15]} (17... Bf6 $16 {was worth a try.} 18. Be3 Rd8) 18. Be4 {[%emt 0:07:56]} Bxc1 {[%emt 0:10:42]} (18... Be7 $16 19. Be3 Be6) 19. Raxc1 $18 {[%emt 0:00:14]} (19. Qxc1 f5 $14) (19. Rexc1 Bg4 20. f3 Be6 $16) 19... Ne7 {[%emt 0:00:35]} 20. Rcd1 {[%emt 0:02:07] aiming for Rxd8+.} Rxd1 {[%emt 0:12:40]} (20... Rf8 {is a better defense.} 21. Qd3 f6) 21. Rxd1 {[%emt 0:00:38]} ({Less strong is} 21. Qxd1 Be6 22. Qa4 Qb8 $18) 21... b6 $2 {[%emt 0:07:58]} (21... Bg4 22. Qa4 Kf8) 22. Qa4 {[%emt 0:04:21][%cal Ra4e8] [#]} g6 {[%emt 0:07:34]} 23. Qe8+ {[%emt 0:00:28]} Kg7 {[%emt 0:00:16]} 24. Rd8 {[%emt 0:00:23][%csl Gd8][%cal Re8h8]} Kf6 {[%emt 0:00:25]} 25. Rd3 {[%emt 0:18:28]} (25. c4 $142) 25... Kg7 $2 (25... c4 {was called for.}) 26. Bg2 {[%emt 0:04:44]} Bf5 {[%emt 0:04:41]} 27. Rd8 {[%emt 0:01:28][%csl Gd8][%cal Re8h8]} Kf6 {[%emt 0:00:14]} 28. Qh8+ {[%emt 0:02:28]} Ke6 {[%emt 0:01:59]} 29. c4 {[%emt 0:03:31][%cal Bc3c4,Bc4d5][%mdl 32] Intending Bd5+ and mate.} e4 {[%emt 0:01:49]} 30. g4 {[%emt 0:00:01] Inhibits h5.} (30. f3 $18) 30... Bxg4 $11 {[%emt 0:00:20]} 31. Bxe4 {[%emt 0:00:01] Black must now prevent Bd5+.} (31. Qe8 $5 {[%cal Rg2e4]}) 31... Be2 $2 {[%emt 0:00:40][%mdl 8192]} (31... Qf4 $11 32. Bd5+ Nxd5 33. cxd5+ (33. Rxd5 Bf3 $11) 33... Kf5) 32. Bd5+ $18 {[%emt 0:00:44]} Nxd5 {[%emt 0:00:01]} 33. cxd5+ {[%emt 0:00:44]} Kf5 {[%emt 0:00:14]} 34. Re8 $2 {[%emt 0:01:58]} (34. Qe8 $18 {and the rest is easy.} Qe5 35. Qxf7+ Qf6 36. Rf8 Qxf7 37. Rxf7+ Ke5 38. Re7+ Kxd5 39. Rxe2) 34... Bc4 $2 {[%emt 0:00:48][%mdl 8192] A mistake that costs the game.} (34... Qf4 $16 35. Qc3 (35. Rxe2 Qg5+ 36. Kh1 Qc1+ 37. Kg2 Qg5+ 38. Kf3 Qf4+ 39. Kg2 Qg5+ 40. Kh1 Qc1+ 41. Kg2 Qg5+ $11) 35... Qg4+ 36. Qg3 Qd4 37. Qh3+ Bg4) 35. Qxh6 {[%emt 0:01:03] Threatens to win with Qh3+.} Bxd5 {[%emt 0:01:02]} 36. Qh3+ {[%emt 0:01:20]} Kf6 {[%emt 0:00:00]} 37. b3 $2 {[%emt 0:00:00]} (37. Qc3+ Kf5 38. Qd3+ Kf6 39. Qxd5) 37... Be6 $2 {[%emt 0:00:00] Weighted Error Value: White=0.96/Black=0.89} (37... Qf4 {is more resistant.} 38. Qc3+ Qd4 39. Qxd4+ cxd4) 1-0